[Event "1st Bangalore GM-Open-A 2024"]
[Site "Bangalore"]
[Date "2024.01.20"]
[Round "4.18"]
[White "Ghosh, Diptayan"]
[Black "Apoorv Kamble"]
[Result "1/2-1/2"]
[ECO "A21"]
[WhiteElo "2568"]
[BlackElo "2308"]
[Annotator "TA"]
[PlyCount "62"]
[EventDate "2024.01.20"]
[EventType "swiss"]
[EventCountry "IND"]
[SourceTitle "playchess.com"]
[Source "ChessBase"]
[SourceQuality "1"]
[TimeControl "5400+30"]

{[%evp 9,62,0,24,44,52,56,58,58,49,32,39,36,43,56,73,76,86,56,48,54,62,43,39,39,57,0,0,0,75,50,52,54,45,36,47,39,46,43,54,10,4,0,24,16,19,13,9,8,27,3,58,0,0,0,15]} 1. c4 {[%emt 0:00:41]} e5 {[%emt 0:00:54]} 2. Nc3 {[%emt 0:00:09]} Bb4 {[%emt 0:00:32]} 3. Nd5 {[%emt 0:00:09]} Be7 {[%emt 0:00:07]} 4. d4 {[%emt 0:00:18]} d6 {[%emt 0:01:26]} 5. e4 {[%emt 0:01:14]} Nc6 {[%emt 0:03:32]} 6. Ne2 {[%emt 0:03:28] A21: English Opening: 1...e5 2 Nc3.} Nf6 {[%emt 0:03:14][%cal Bg8f6,Bf6d7,Bd7b8,Bb8c6][%mdl 32]} 7. Nxe7 {[%emt 0:02:56]} Nxe7 {[%emt 0:11:49]} 8. f3 {[%emt 0:09:00] White is slightly better.} O-O {[%emt 0:02:27]} 9. Be3 {[%emt 0:01:21]} Nd7 {[%emt 0:01:58] [#]} 10. Ng3 $146 {[%emt 0:10:37]} ({Predecessor:} 10. Qc2 f5 11. O-O-O fxe4 12. fxe4 Qe8 13. h3 Qg6 14. g4 Nc6 15. Bg2 exd4 16. Nxd4 Nxd4 17. Bxd4 {½-½ Price,D (2074)-Hjorth,J (1960) Webchess op5 Gr07 email 2012}) 10... Qe8 {[%emt 0:13:59]} 11. Be2 {[%emt 0:09:52]} Nb8 {[%emt 0:12:10]} 12. O-O {[%emt 0:07:27]} f5 {[%emt 0:01:27] [#] White must now prevent ...f4.} 13. exf5 {[%emt 0:05:59]} Nxf5 {[%emt 0:00:43]} 14. Nxf5 {[%emt 0:00:42]} Bxf5 {[%emt 0:00:06]} 15. dxe5 {[%emt 0:05:11]} Nc6 {[%emt 0:05:03]} 16. Qd5+ {[%emt 0:05:41]} Be6 {[%emt 0:05:32]} 17. Qe4 {[%emt 0:00:36]} Bf5 $1 {[%emt 0:00:32]} 18. Qd5+ {[%emt 0:00:28]} Be6 {[%emt 0:00:13]} 19. Qd2 {[%emt 0:01:42] White is more active.} dxe5 {[%emt 0:11:11]} 20. Rad1 {[%emt 0:00:16]} Rd8 {[%emt 0:02:06]} 21. Qc3 {[%emt 0:00:12]} Qe7 {[%emt 0:00:15]} 22. Kh1 {[%emt 0:05:18]} Bf7 {[%emt 0:05:56]} 23. Bd3 {[%emt 0:05:23]} Qb4 {[%emt 0:03:32]} 24. Qxb4 {[%emt 0:06:57]} (24. Qc1 {is interesting.} Rxd3 25. Rxd3 Bxc4 26. Bc5) 24... Nxb4 {[%emt 0:00:02]} 25. Be2 {[%emt 0:00:06] [#] Strongly threatening Bc5. A strong pair of Bishops.} Nc6 {[%emt 0:00:54]} 26. b3 {[%emt 0:05:04]} Bg6 {[%emt 0:01:46]} 27. Bg5 {[%emt 0:00:58]} Rxd1 {[%emt 0:03:25]} 28. Rxd1 {[%emt 0:00:05]} e4 {[%emt 0:00:04]} 29. Rd7 {[%emt 0:08:46]} (29. Kg1 $5 {[%cal Rf3e4]}) 29... Bh5 {[%emt 0:02:53]} (29... exf3 $11 30. gxf3 (30. Bxf3 Be4 $11 {[%mdl 64] Back Rank}) 30... Rf7) 30. Kg1 {[%emt 0:03:59]} ({Reject} 30. Rxc7 Nd4 31. Bf1 Ne6 32. Rxb7 Nxg5 $11) (30. Bf1 $1 $14) 30... exf3 $11 {[%emt 0:01:41]} 31. gxf3 {[%emt 0:00:02]} Ne5 {[%emt 0:05:01] Weighted Error Value: White=0.14 (very precise) /Black=0.11 (very precise)} 1/2-1/2

[Event "1st Bangalore GM-Open-A 2024"]
[Site "Bangalore"]
[Date "2024.01.20"]
[Round "4.19"]
[White "Fawzy, Adham"]
[Black "Sahoo, Utkal Ranjan"]
[Result "1/2-1/2"]
[ECO "C02"]
[WhiteElo "2522"]
[BlackElo "2316"]
[Annotator "TA"]
[PlyCount "57"]
[EventDate "2024.01.20"]
[EventType "swiss"]
[EventCountry "IND"]
[SourceTitle "playchess.com"]
[Source "ChessBase"]
[SourceQuality "1"]
[TimeControl "5400+30"]

{[%evp 14,57,23,18,43,28,41,35,87,82,91,93,94,85,112,72,166,174,171,0,0,0,0,0,0,-22,-18,-16,-22,-29,-41,-19,-8,-36,-16,-18,-29,-36,0,0,0,-44,0,0,0,-34]} 1. e4 {[%emt 0:00:11]} e6 {[%emt 0:00:10]} 2. d4 {[%emt 0:00:52]} d5 {[%emt 0:00:06]} 3. e5 {[%emt 0:00:49]} c5 {[%emt 0:00:41]} 4. c3 {[%emt 0:00:08]} Nc6 {[%emt 0:00:10]} 5. Nf3 {[%emt 0:00:13]} Bd7 {[%emt 0:00:44]} 6. Bd3 {[%emt 0:02:56]} Qc7 {[%emt 0:03:22]} 7. a3 {[%emt 0:05:14]} f6 {[%emt 0:02:07]} 8. O-O {[%emt 0:03:06]} fxe5 {[%emt 0:03:28] C02: French: Advance Variation.} 9. Nxe5 {[%emt 0:03:58]} Nxe5 {[%emt 0:01:12]} (9... cxd4 $2 10. Qh5+ g6 11. Bxg6+ hxg6 12. Qxg6+ (12. Qxh8 $2 Qxe5 13. Qxe5 {[%mdl 64] Remove Defender} Nxe5 $17) 12... Ke7 13. Bg5+ Kd6 14. Bf4 $18) 10. Bf4 {[%emt 0:02:19][%mdl 64] [#] Hoping for Qh5+. Pin has lost popularity (10.dxe5).} (10. dxe5 O-O-O $11) 10... Nf6 {[%emt 0:19:12] [#] Dodges Qh5+} 11. Re1 $146 {[%emt 0:10:35][%mdl 64] Pin} ({Predecessor:} 11. dxe5 O-O-O 12. Bg3 Ne4 13. Bxe4 dxe4 14. c4 Bc6 15. Qe2 g5 16. Nc3 h5 17. h3 {0-1 Jimenez Fernandez,R (2040)-Webb,L (2201) Sitges Sunway op 9th 2022 (6)}) 11... O-O-O {[%emt 0:05:24][%cal Od7a4]} 12. Bxe5 {[%emt 0:04:16]} (12. dxe5 c4 13. Bc2 Ng8 $11) 12... Bd6 {[%emt 0:04:55]} 13. Nd2 {[%emt 0:01:57][%cal Bb1d2,Bd2f3,Bf3e5][%mdl 32]} Rdf8 {[%emt 0:03:28]} 14. Nf3 {[%emt 0:05:54] White has more active pieces.} Ng4 {[%emt 0:11:47]} (14... c4 $16 {was called for.}) 15. Bxd6 $18 {[%emt 0:29:32]} (15. Bxg7 $2 Bxh2+ 16. Kf1 Nxf2 $19) 15... Qxd6 {[%emt 0:00:06]} 16. Qe2 $2 {[%emt 0:02:24]} (16. h3 $18 Nf6 17. dxc5 Qxc5 18. Rc1) 16... c4 $11 {[%emt 0:05:56]} 17. Bc2 {[%emt 0:02:41]} h5 $1 {[%emt 0:03:30]} 18. h3 {[%emt 0:04:30]} Rh6 $1 {[%emt 0:13:07][%cal Of8f3]} 19. Ne5 {[%emt 0:04:20]} (19. hxg4 hxg4 20. Qe5 Rfh8 $17) 19... Rxf2 {[%emt 0:01:21]} (19... Nxf2 20. Rf1 Rhf6 21. Qxh5 $14) 20. Qd1 {[%emt 0:00:55]} Nxe5 {[%emt 0:00:53]} 21. Kxf2 {[%emt 0:06:02]} Rf6+ {[%emt 0:04:25]} 22. Ke2 {[%emt 0:01:11] [#]} (22. Kg1 $2 Nf3+ 23. Qxf3 Rxf3 $19) 22... Nd3 $1 {[%emt 0:07:59]} 23. Rf1 {[%emt 0:01:28] Dodges Rf2+. Black must now prevent Rxf6. The board is on fire.} (23. Bxd3 $2 {too greedy.} Qg3 24. Rf1 cxd3+ 25. Qxd3 Qxd3+ 26. Kxd3 Bb5+ 27. Kd2 Bxf1 $19) 23... Qg3 {[%emt 0:00:27] ( -> ...Rf2+)} (23... Qh2 $5 {[%cal Rh2g2]} 24. Rxf6 Qxg2+ 25. Ke3 gxf6 26. Bxd3 cxd3 27. Qxd3 Qxb2 $17) 24. Rxf6 {[%emt 0:00:37]} Qxg2+ {[%emt 0:00:22]} 25. Ke3 {[%emt 0:00:35]} Qg5+ {[%emt 0:00:47][%mdl 1024] Black has compensation.} 26. Ke2 {[%emt 0:00:17]} Qg2+ {[%emt 0:01:47]} ({Much less strong is} 26... Qxf6 27. Bxd3 cxd3+ 28. Qxd3 $14) 27. Ke3 {[%emt 0:00:01]} Qg5+ {[%emt 0:02:13]} 28. Ke2 {[%emt 0:00:16] Threatens to win with Rf8+.} Qg2+ {[%emt 0:02:38]} ({But not} 28... Qxf6 29. Bxd3 cxd3+ 30. Qxd3 $14) 29. Ke3 {[%emt 0:00:33] Weighted Error Value: White=0.11 (very precise) /Black=0.14 (very precise)} 1/2-1/2

[Event "1st Bangalore GM-Open-A 2024"]
[Site "Bangalore"]
[Date "2024.01.20"]
[Round "4.20"]
[White "Das, Sayantan"]
[Black "Srihari L"]
[Result "1/2-1/2"]
[ECO "A26"]
[WhiteElo "2514"]
[BlackElo "2288"]
[Annotator "TA"]
[PlyCount "145"]
[EventDate "2024.01.20"]
[EventType "swiss"]
[EventCountry "IND"]
[SourceTitle "playchess.com"]
[Source "ChessBase"]
[SourceQuality "1"]
[TimeControl "5400+30"]

{[%evp 17,145,14,33,4,18,-14,0,0,7,0,0,0,25,24,8,-22,0,0,0,0,0,0,3,0,0,0,0,-53,0,0,0,0,0,-12,-6,-6,0,0,0,0,26,2,12,16,32,4,32,32,32,4,31,5,7,7,33,33,33,33,106,0,0,0,0,0,0,0,0,0,0,0,0,0,0,0,0,0,0,0,0,0,0,0,0,0,0,0,0,0,0,0,0,0,0,0,0,0,0,0,0,0,0,0,0,0,0,0,0,0,0,0,0,0,0,0,0,0,0,0,0,0,0,0,0,0,0,0,0,0,0,0]} 1. Nf3 {[%emt 0:00:14]} Nf6 {[%emt 0:00:05]} 2. c4 {[%emt 0:00:53]} g6 {[%emt 0:00:04]} 3. g3 {[%emt 0:00:07]} Bg7 {[%emt 0:00:05]} 4. Bg2 {[%emt 0:00:05]} O-O {[%emt 0:00:05]} 5. O-O {[%emt 0:01:13]} d6 {[%emt 0:00:08]} 6. Nc3 {[%emt 0:00:22]} e5 {[%emt 0:00:35]} 7. d3 {[%emt 0:00:16]} Nc6 {[%emt 0:01:17]} 8. Rb1 {[%emt 0:00:14]} a6 {[%emt 0:00:44]} 9. b4 {[%emt 0:02:21]} h6 {[%emt 0:06:48]} 10. h3 {[%emt 0:06:45]} Be6 {[%emt 0:03:33]} 11. e4 {[%emt 0:08:54]} Qd7 {[%emt 0:07:47]} 12. Kh2 {[%emt 0:00:34]} b5 {[%emt 0:00:58]} 13. cxb5 {[%emt 0:15:44]} axb5 {[%emt 0:00:13]} 14. a3 {[%emt 0:00:05]} Nd4 {[%emt 0:16:19]} 15. Nxd4 {[%emt 0:10:59]} exd4 {[%emt 0:00:18]} 16. Nd5 {[%emt 0:00:59]} Bxd5 {[%emt 0:19:59]} 17. exd5 {[%emt 0:00:02]} h5 {[%emt 0:01:08]} 18. Bb2 {[%emt 0:03:21]} Qf5 {[%emt 0:06:41]} 19. Rc1 {[%emt 0:18:19]} Nxd5 {[%emt 0:05:49]} 20. Be4 {[%emt 0:10:30]} Qe5 {[%emt 0:05:27]} 21. Qf3 {[%emt 0:10:10]} c6 {[%emt 0:00:19]} 22. Rfe1 {[%emt 0:02:16]} (22. Bxd5 $11 cxd5 23. Rfe1) 22... Rae8 {[%emt 0:04:29]} ({Better is} 22... h4 $15) 23. Bxd5 $1 $11 {[%emt 0:03:05]} Qxd5 {[%emt 0:00:10]} 24. Qxd5 {[%emt 0:00:09]} cxd5 {[%emt 0:00:09]} 25. Kg2 {[%emt 0:00:09]} Rxe1 {[%emt 0:00:29]} 26. Rxe1 {[%emt 0:00:06][%mdl 4096] Endgame KRB-KRB} Rc8 {[%emt 0:00:08]} 27. Rc1 {[%emt 0:01:25] Against Rc2} Rxc1 {[%emt 0:01:04]} 28. Bxc1 {[%emt 0:00:02] KB-KB} Kf8 {[%emt 0:00:49]} 29. Kf3 {[%emt 0:00:32][%mdl 1024] White has compensation.} Ke7 {[%emt 0:00:39]} 30. Ke2 {[%emt 0:00:09]} Kd7 {[%emt 0:02:02]} 31. Kd1 {[%emt 0:00:10]} Kc6 {[%emt 0:01:19]} 32. Kc2 {[%emt 0:00:03]} Bf6 {[%emt 0:04:59]} 33. Kb3 {[%emt 0:00:33]} Bd8 {[%emt 0:00:15]} 34. a4 {[%emt 0:01:17]} bxa4+ {[%emt 0:00:18]} 35. Kxa4 {[%emt 0:00:02]} Bb6 {[%emt 0:00:15]} 36. Bg5 {[%emt 0:01:08]} Bc7 {[%emt 0:03:05]} 37. Bf6 {[%emt 0:00:07]} Bb6 {[%emt 0:00:09]} 38. h4 {[%emt 0:01:59]} (38. f3 $16) 38... Bc7 $1 {[%emt 0:04:20] The position is equal.} 39. Bxd4 {[%emt 0:00:16]} Bd8 {[%emt 0:00:06]} 40. Be3 {[%emt 0:01:02]} Bc7 {[%emt 0:01:20]} 41. f3 {[%emt 0:01:09]} Bd8 {[%emt 0:00:19]} 42. Bd4 {[%emt 0:02:49]} Bc7 {[%emt 0:00:20]} 43. Bf6 {[%emt 0:00:14]} Bb6 {[%emt 0:00:38]} 44. Be7 {[%emt 0:00:47]} Bf2 {[%emt 0:03:43]} 45. Ka5 {[%emt 0:00:27] [#] aiming for Ka6.} Be1 {[%emt 0:00:40]} (45... Bxg3 $2 46. Ka6 Kd7 47. b5 $18) 46. Bf6 {[%emt 0:00:24]} Kb7 {[%emt 0:00:41]} (46... Bxg3 $2 47. Ka6 Kd7 48. b5 $18) 47. g4 {[%emt 0:00:28]} Kc6 {[%emt 0:00:16]} 48. gxh5 {[%emt 0:00:21]} gxh5 {[%emt 0:00:01]} 49. Be7 {[%emt 0:00:12]} Kd7 {[%emt 0:00:56]} 50. Bg5 {[%emt 0:00:32]} Kc6 {[%emt 0:00:08]} 51. Bf6 {[%emt 0:00:04]} Bd2 {[%emt 0:00:52]} 52. Bd4 {[%emt 0:01:04]} Be1 {[%emt 0:00:21]} 53. Be3 {[%emt 0:00:51]} Kb7 {[%emt 0:00:22]} ({Much less strong is} 53... Bxh4 54. Ka6 d4 55. b5+ Kc5 56. Bd2 $16) 54. Bg5 {[%emt 0:00:05]} Kc6 {[%emt 0:00:34]} 55. Bf6 {[%emt 0:00:50]} Bd2 {[%emt 0:03:42]} 56. Ka4 {[%emt 0:00:00]} Be1 {[%emt 0:00:00]} 57. Bg5 {[%emt 0:00:00]} Kb6 {[%emt 0:00:00]} 58. b5 {[%emt 0:00:07]} Kb7 {[%emt 0:00:00]} 59. Bd8 {[%emt 0:00:16]} Kc8 {[%emt 0:00:00]} 60. Be7 {[%emt 0:00:20]} Kc7 {[%emt 0:00:00]} 61. Bg5 {[%emt 0:00:45]} Kb7 {[%emt 0:00:00]} 62. Bf6 {[%emt 0:00:05]} Kc7 {[%emt 0:00:26]} 63. f4 {[%emt 0:01:10][%cal Bf3f4,Bf4f5][%mdl 32]} Kb7 {[%emt 0:00:59]} 64. f5 $1 {[%emt 0:00:05]} Kc7 {[%emt 0:00:25]} 65. Be7 {[%emt 0:00:29]} Bd2 {[%emt 0:00:17]} 66. Bg5 {[%emt 0:01:29]} Be1 {[%emt 0:00:06]} 67. Bf6 {[%emt 0:00:18]} Bd2 {[%emt 0:00:38]} 68. Bg5 {[%emt 0:01:05]} Be1 {[%emt 0:00:12]} 69. Be7 {[%emt 0:00:06]} Bd2 {[%emt 0:00:25]} 70. Bf6 {[%emt 0:00:04]} Be1 {[%emt 0:00:40]} 71. Bg5 {[%emt 0:00:05]} Kb7 {[%emt 0:00:32]} 72. Kb3 {[%emt 0:00:23]} Kb6 {[%emt 0:00:16]} 73. Ka4 {[%emt 0:00:05] Weighted Error Value: White=0.10 (very precise) /Black=0.07 (flawless)} 1/2-1/2

[Event "1st Bangalore GM-Open-A 2024"]
[Site "Bangalore"]
[Date "2024.01.20"]
[Round "4.21"]
[White "Omidi, Arya"]
[Black "Shyam, Sundar M."]
[Result "1/2-1/2"]
[ECO "C79"]
[WhiteElo "2301"]
[BlackElo "2497"]
[Annotator "RC"]
[PlyCount "80"]
[EventDate "2024.01.20"]
[EventType "swiss"]
[EventCountry "IND"]
[SourceTitle "playchess.com"]
[Source "ChessBase"]
[SourceQuality "1"]
[TimeControl "5400+30"]

1. e4 {[%emt 0:00:02]} e5 {[%emt 0:00:23]} 2. Nf3 {[%emt 0:00:05]} Nc6 {[%emt 0:00:08]} 3. Bb5 {[%emt 0:00:06]} a6 {[%emt 0:00:08]} 4. Ba4 {[%emt 0:00:03]} Nf6 {[%emt 0:00:09]} 5. O-O {[%emt 0:00:10]} d6 {[%emt 0:00:06]} 6. c3 {[%emt 0:04:27]} Bd7 {[%emt 0:00:55]} 7. Re1 {[%emt 0:00:56]} g6 {[%emt 0:00:07]} 8. d4 {[%emt 0:01:04]} Bg7 {[%emt 0:00:14]} 9. Nbd2 {[%emt 0:03:40]} O-O {[%emt 0:00:15]} 10. Bc2 {[%emt 0:00:50]} exd4 {[%emt 0:01:02]} 11. cxd4 {[%emt 0:00:13]} Nh5 {[%emt 0:00:09]} 12. d5 {[%emt 0:02:56]} Nb4 {[%emt 0:00:15]} 13. Bb1 {[%emt 0:02:24]} a5 {[%emt 0:00:04]} 14. a3 {[%emt 0:07:51]} Na6 {[%emt 0:00:07]} 15. Bc2 {[%emt 0:04:37]} Re8 {[%emt 0:09:45]} 16. h3 {[%emt 0:05:37]} h6 {[%emt 0:02:43]} 17. Rb1 {[%emt 0:04:35]} Nc5 {[%emt 0:00:13]} 18. Nf1 {[%emt 0:11:35]} Re7 {[%emt 0:13:21]} 19. b4 {[%emt 0:14:25]} axb4 {[%emt 0:00:22]} 20. axb4 {[%emt 0:00:01]} Na4 {[%emt 0:00:12]} 21. Rb3 {[%emt 0:00:23]} Qe8 {[%emt 0:07:45]} 22. g4 {[%emt 0:02:17]} Nf6 {[%emt 0:01:18]} 23. Ng3 {[%emt 0:00:40]} Nh7 {[%emt 0:03:22]} 24. Be3 {[%emt 0:04:18]} Nb6 {[%emt 0:12:36]} 25. Qc1 {[%emt 0:00:57]} Ba4 {[%emt 0:17:53]} 26. Rb1 {[%emt 0:01:32]} Bxc2 {[%emt 0:00:00]} 27. Qxc2 {[%emt 0:00:01]} Qa4 {[%emt 0:00:00]} 28. Rec1 {[%emt 0:02:04]} Qa2 {[%emt 0:06:46]} 29. Kg2 {[%emt 0:04:40]} Nf6 {[%emt 0:02:29]} 30. Rb2 {[%emt 0:02:33]} Qa4 {[%emt 0:01:25]} 31. Qxa4 {[%emt 0:00:35]} Rxa4 {[%emt 0:01:37]} 32. Rbc2 {[%emt 0:00:04]} Nxe4 {[%emt 0:06:31]} 33. Rxc7 {[%emt 0:01:39]} Rxc7 {[%emt 0:00:04]} 34. Rxc7 {[%emt 0:00:03]} Nxg3 {[%emt 0:00:05]} 35. Bxb6 {[%emt 0:01:18]} Rxb4 {[%emt 0:00:35]} 36. Be3 {[%emt 0:01:36]} Ne4 {[%emt 0:03:15]} 37. Rc8+ {[%emt 0:00:28]} Kh7 {[%emt 0:00:01]} 38. Rc7 {[%emt 0:00:13]} Kg8 {[%emt 0:00:01]} 39. Rc8+ {[%emt 0:00:07]} Kh7 {[%emt 0:00:01]} 40. Rc7 {[%emt 0:00:13]} Kg8 {[%emt 0:06:12]} 1/2-1/2

[Event "1st Bangalore GM-Open-A 2024"]
[Site "Bangalore"]
[Date "2024.01.20"]
[Round "4.22"]
[White "Savchenko, Boris"]
[Black "Saravana, Krishnan P."]
[Result "1/2-1/2"]
[ECO "C90"]
[WhiteElo "2489"]
[BlackElo "2269"]
[Annotator "RC"]
[PlyCount "63"]
[EventDate "2024.01.20"]
[EventType "swiss"]
[EventCountry "IND"]
[SourceTitle "playchess.com"]
[Source "ChessBase"]
[SourceQuality "1"]
[TimeControl "5400+30"]

1. e4 {[%emt 0:00:04]} e5 {[%emt 0:00:22]} 2. Nf3 {[%emt 0:03:02]} Nc6 {[%emt 0:00:22]} 3. Bb5 {[%emt 0:00:17]} a6 {[%emt 0:02:28]} 4. Ba4 {[%emt 0:00:37]} Nf6 {[%emt 0:00:48]} 5. O-O {[%emt 0:00:09]} Be7 {[%emt 0:01:39]} 6. Re1 {[%emt 0:00:15]} b5 {[%emt 0:01:36]} 7. Bb3 {[%emt 0:00:08]} O-O {[%emt 0:02:13]} 8. c3 {[%emt 0:01:39]} d6 {[%emt 0:04:01]} 9. a4 {[%emt 0:00:35]} Bg4 {[%emt 0:02:50]} 10. h3 {[%emt 0:01:12]} Bh5 {[%emt 0:03:44]} 11. Qe2 {[%emt 0:07:13]} Qd7 {[%emt 0:08:29]} 12. d3 {[%emt 0:00:19]} Na5 {[%emt 0:02:12]} 13. Bc2 {[%emt 0:01:24]} b4 {[%emt 0:01:06]} 14. d4 {[%emt 0:04:09]} bxc3 {[%emt 0:13:25]} 15. dxe5 {[%emt 0:11:05]} dxe5 {[%emt 0:01:22]} 16. Nxc3 {[%emt 0:05:55]} Nc6 {[%emt 0:05:48]} 17. Be3 {[%emt 0:00:34]} Nd4 {[%emt 0:03:32]} 18. Bxd4 {[%emt 0:00:11]} Bxf3 {[%emt 0:00:21]} 19. Qxf3 {[%emt 0:01:20]} Qxd4 {[%emt 0:00:07]} 20. Rad1 {[%emt 0:09:31]} Qb4 {[%emt 0:03:04]} 21. Nd5 {[%emt 0:01:27]} Nxd5 {[%emt 0:02:25]} 22. exd5 {[%emt 0:00:13]} Qxb2 {[%emt 0:03:11]} 23. Re2 {[%emt 0:01:24]} Qa3 {[%emt 0:03:39]} 24. Qxa3 {[%emt 0:02:59]} Bxa3 {[%emt 0:00:07]} 25. Rxe5 {[%emt 0:00:04]} Rfb8 {[%emt 0:04:40]} 26. Bf5 {[%emt 0:01:28]} Rb2 {[%emt 0:03:22]} 27. Rde1 {[%emt 0:01:36]} g6 {[%emt 0:00:52]} 28. Re8+ {[%emt 0:00:26]} Rxe8 {[%emt 0:00:09]} 29. Rxe8+ {[%emt 0:00:03]} Kg7 {[%emt 0:00:24]} 30. Bd3 {[%emt 0:00:20]} Rb4 {[%emt 0:02:41]} 31. Re4 {[%emt 0:01:46]} Rxe4 {[%emt 0:00:44]} 32. Bxe4 {[%emt 0:00:06]} 1/2-1/2

[Event "1st Bangalore GM-Open-A 2024"]
[Site "Bangalore"]
[Date "2024.01.20"]
[Round "4.23"]
[White "Stany, G.A."]
[Black "Joshua, A P"]
[Result "1-0"]
[ECO "B12"]
[WhiteElo "2459"]
[BlackElo "2234"]
[Annotator "ChessBase"]
[PlyCount "59"]
[EventDate "2024.01.20"]
[EventType "swiss"]
[EventCountry "IND"]
[SourceTitle "playchess.com"]
[Source "ChessBase"]
[SourceQuality "1"]
[TimeControl "5400+30"]

1. e4 {[%emt 0:00:07]} c6 {[%emt 0:02:01]} 2. d4 {[%emt 0:00:07]} d5 {[%emt 0:00:16]} 3. e5 {[%emt 0:00:06]} c5 {[%emt 0:00:08]} 4. c3 {[%emt 0:00:11]} Nc6 {[%emt 0:01:20]} 5. Be2 {[%emt 0:00:12]} Bf5 {[%emt 0:08:07]} 6. Nf3 {[%emt 0:00:22]} e6 {[%emt 0:00:45]} 7. O-O {[%emt 0:00:08]} Qb6 {[%emt 0:05:45]} 8. dxc5 {[%emt 0:01:27]} Bxc5 {[%emt 0:00:41]} 9. b4 {[%emt 0:00:07]} Be7 {[%emt 0:01:18]} 10. Qa4 {[%emt 0:08:17]} Nh6 {[%emt 0:04:40]} 11. Be3 {[%emt 0:04:40]} Qc7 {[%emt 0:04:37]} 12. b5 {[%emt 0:00:50]} Qa5 {[%emt 0:03:27]} 13. Qb3 {[%emt 0:00:41]} Nb8 {[%emt 0:00:58]} 14. Nbd2 {[%emt 0:04:58]} Nd7 {[%emt 0:08:11]} 15. c4 {[%emt 0:00:21]} Ng4 {[%emt 0:00:47]} 16. cxd5 {[%emt 0:10:42]} Nxe3 {[%emt 0:01:00]} 17. Qxe3 {[%emt 0:00:42]} exd5 {[%emt 0:01:12]} 18. Nd4 {[%emt 0:01:39]} Be6 {[%emt 0:04:52]} 19. f4 {[%emt 0:00:43]} g6 {[%emt 0:05:18]} 20. g4 {[%emt 0:04:34]} Nc5 {[%emt 0:04:08]} 21. f5 {[%emt 0:10:53]} gxf5 {[%emt 0:01:04]} 22. gxf5 {[%emt 0:00:24]} Rg8+ {[%emt 0:01:17]} 23. Kh1 {[%emt 0:00:04]} Bg5 {[%emt 0:01:22]} 24. Qf3 {[%emt 0:12:56]} Qxd2 {[%emt 0:05:48]} 25. fxe6 {[%emt 0:00:49]} O-O-O {[%emt 0:02:26]} 26. exf7 {[%emt 0:01:47]} Qxd4 {[%emt 0:03:15]} 27. fxg8=Q {[%emt 0:01:05]} Rxg8 {[%emt 0:00:17]} 28. Rad1 {[%emt 0:01:27]} Bd2 {[%emt 0:01:45]} 29. Qf7 {[%emt 0:03:54]} Rd8 {[%emt 0:01:50]} 30. e6 {[%emt 0:01:10]} 1-0